[Event "XII Cracow ICC-A 2024"]
[Site "Krakow"]
[Date "2024.06.24"]
[Round "4.7"]
[White "Czernek, Tymon"]
[Black "Samunenkov, Ihor"]
[Result "0-1"]
[ECO "B15"]
[WhiteElo "2316"]
[BlackElo "2532"]
[Annotator "TA"]
[PlyCount "70"]
[EventDate "2024.06.20"]
[EventType "swiss"]
[EventCountry "POL"]
[SourceTitle "playchess.com"]
[Source "ChessBase"]
[SourceQuality "1"]
[TimeControl "40/5400+30:1800+30"]

{[%evp 14,70,21,17,43,31,81,12,22,11,14,0,8,0,0,0,11,9,16,18,15,0,0,0,0,0,0,0,0,0,0,-138,-137,-262,-258,-382,-394,-359,-353,-670,-597,-671,-673,-858,-806,-999,-969,-929,-867,-1131,-1131,-29991,-29992,-29992,-29993,-29993,-29991,-29997,-29998]} 1. e4 {[%emt 0:00:14]} c6 {[%emt 0:00:16]} 2. d4 {[%emt 0:00:04]} d5 {[%emt 0:00:08]} 3. Nc3 {[%emt 0:00:03]} dxe4 {[%emt 0:00:10]} 4. Nxe4 {[%emt 0:00:04]} Nf6 {[%emt 0:00:11]} 5. Nxf6+ {[%emt 0:00:11]} exf6 {[%emt 0:00:07]} 6. c3 {[%emt 0:00:13]} Bd6 {[%emt 0:00:09]} 7. Bd3 {[%emt 0:00:05]} O-O {[%emt 0:00:10]} 8. Qc2 {[%emt 0:00:07]} c5 {[%emt 0:00:47]} 9. Ne2 {[%emt 0:04:38]} g6 {[%emt 0:01:00]} ({Black should try} 9... cxd4 $14 10. Nxd4 (10. Bxh7+ Kh8 $15) 10... g6) 10. Be3 {[%emt 0:01:49]} (10. Bh6 $16) 10... Qc7 $11 {[%emt 0:00:16] The position is equal.} 11. dxc5 {[%emt 0:02:39]} Bxc5 {[%emt 0:00:07]} 12. Bxc5 {[%emt 0:00:21]} Qxc5 {[%emt 0:00:07]} 13. O-O {[%emt 0:00:56]} Nc6 {[%emt 0:00:28]} 14. Be4 {[%emt 0:03:56]} f5 {[%emt 0:10:58]} 15. Bxc6 {[%emt 0:00:19]} bxc6 {[%emt 0:00:17]} 16. Rfe1 {[%emt 0:02:13]} Bb7 {[%emt 0:07:48]} 17. Nd4 {[%emt 0:03:01]} Qb6 {[%emt 0:05:09]} 18. Rad1 {[%emt 0:18:59]} Rfe8 {[%emt 0:08:23]} 19. Qd2 {[%emt 0:14:02]} Rxe1+ {[%emt 0:07:36]} 20. Rxe1 {[%emt 0:00:04]} c5 {[%emt 0:00:44]} 21. Nb3 {[%emt 0:00:23]} a5 {[%emt 0:05:29]} 22. Re5 {[%emt 0:06:44]} (22. Qd7 $11) 22... Rd8 $17 {[%emt 0:11:57]} 23. Qe1 {[%emt 0:00:06] [#]} (23. Qe2 $17 Be4 24. h4 (24. Nxc5 $2 {perishes.} Qxb2 25. Qe1 Qc2 $19) (24. Rxc5 $2 a4 $19)) 23... Be4 $1 $19 {[%emt 0:06:01] Threatens to win with ...Qd6.} 24. Nxc5 {[%emt 0:21:13]} (24. Rxc5 $2 {too greedy.} a4 25. Rc4 axb3 $19) (24. f3 {keeps fighting.} Qd6 25. Rxc5) 24... f6 {[%emt 0:01:53]} 25. Rxe4 {[%emt 0:02:37]} ({Of course not} 25. Na4 Qc6 26. Rxa5 Bc2 $19 (26... Bxg2 $2 27. Rc5 $19)) 25... fxe4 {[%emt 0:00:15][%mdl 4096] Endgame. KQR-KQN} 26. Nb3 {[%emt 0:01:40]} (26. Na4 Qd6 27. h4) 26... a4 {[%emt 0:00:58]} 27. Nd4 {[%emt 0:00:05]} Qxb2 {[%emt 0:00:12]} 28. g3 {[%emt 0:00:11]} Re8 {[%emt 0:01:15]} 29. Qd1 {[%emt 0:01:05]} e3 {[%emt 0:03:07]} 30. fxe3 {[%emt 0:00:19]} Qxa2 {[%emt 0:00:31][%cal Oe8b8] [#] Hoping for ...Rb8!} 31. Nb5 {[%emt 0:00:33]} Qe6 {[%emt 0:00:43]} 32. Qxa4 {[%emt 0:00:36]} Qxe3+ {[%emt 0:00:08] Black mates.} 33. Kg2 {[%emt 0:00:09]} Qe2+ {[%emt 0:00:09]} 34. Kh3 {[%emt 0:00:16]} Qh5+ {[%emt 0:01:08]} 35. Kg2 {[%emt 0:00:04]} Re2+ {[%emt 0:00:07] Weighted Error Value: White=0.81/Black=0.06 (flawless) .  Mistake:       	White=5     	Black=1      OK:         	White=7     	Black=7      Best:        	---       	Black=2      Strong:       	---       	Black=1} 0-1

[Event "XII Cracow ICC-A 2024"]
[Site "Krakow"]
[Date "2024.06.24"]
[Round "4.8"]
[White "Zwardon, Vojtech"]
[Black "Nurgaliyev, Sauat"]
[Result "0-1"]
[ECO "A36"]
[WhiteElo "2458"]
[BlackElo "2321"]
[Annotator "TA"]
[PlyCount "76"]
[EventDate "2024.06.20"]
[EventType "swiss"]
[EventCountry "POL"]
[SourceTitle "playchess.com"]
[Source "ChessBase"]
[SourceQuality "1"]
[TimeControl "40/5400+30:1800+30"]

{[%evp 9,76,0,8,3,0,0,0,5,11,-16,21,15,18,10,22,16,8,-13,-27,-23,-18,-13,-31,-24,0,-43,-31,-42,-43,-55,-57,-78,-76,-143,-121,-117,-112,-169,-243,-252,-240,-299,-275,-292,-279,-357,-354,-374,-373,-368,-377,-366,-362,-357,-275,-264,-264,-381,-381,-982,-982,-961,-954,-29978,-29978,-29976,-29978,-29978,-29979]} 1. c4 {[%emt 0:12:01]} c5 {[%emt 0:00:06]} 2. g3 {[%emt 0:00:03]} g6 {[%emt 0:00:10]} 3. Bg2 {[%emt 0:00:02]} Bg7 {[%emt 0:00:07]} 4. Nc3 {[%emt 0:00:00]} Nc6 {[%emt 0:00:13]} 5. a3 {[%emt 0:00:02]} b6 {[%emt 0:00:33]} 6. Nf3 {[%emt 0:01:49]} Bb7 {[%emt 0:01:09]} 7. O-O {[%emt 0:00:02]} d6 {[%emt 0:02:28]} 8. e3 {[%emt 0:00:46][%cal Be2e3,Be3d4][%mdl 32] The position is equal.} Nf6 {[%emt 0:06:57]} 9. d4 {[%emt 0:01:22]} cxd4 {[%emt 0:01:20]} 10. exd4 {[%emt 0:02:27]} Rc8 {[%emt 0:01:59]} 11. b4 {[%emt 0:08:08] Prevents Na5.} O-O {[%emt 0:00:38]} 12. Bb2 {[%emt 0:01:15]} e6 {[%emt 0:07:02]} 13. Rc1 {[%emt 0:00:46]} (13. d5 $5 exd5 14. Nxd5 $17) 13... Ne7 {[%emt 0:02:41]} 14. Qb3 {[%emt 0:00:40]} Nf5 {[%emt 0:02:48] And now ...Bxf3 would win.} 15. Rfd1 {[%emt 0:00:11]} Qc7 {[%emt 0:05:52]} 16. Nb5 {[%emt 0:03:30][%csl LRa7,LRc7]} Qb8 {[%emt 0:00:48]} 17. a4 {[%emt 0:04:48]} Qa8 {[%emt 0:04:45]} 18. h3 {[%emt 0:01:38]} h5 {[%emt 0:03:54]} (18... a6 $5 19. Na3 $8 h5 $11) 19. c5 {[%emt 0:13:35]} Bd5 {[%emt 0:02:31]} 20. Qa3 {[%emt 0:00:11]} Bh6 {[%emt 0:07:21] White is on the road to losing.} 21. cxd6 {[%emt 0:08:07]} (21. Rb1 $142) 21... Bxc1 $17 {[%emt 0:00:59]} 22. Bxc1 {[%emt 0:00:41]} Rc2 {[%emt 0:04:46] Black is more active.} 23. Nc7 {[%emt 0:07:52]} (23. Ne1 $17 Bxg2 24. Nxc2) 23... Qc6 $19 {[%emt 0:01:30]} 24. Nxd5 {[%emt 0:01:25]} Nxd5 {[%emt 0:00:52]} ({Less strong is} 24... exd5 25. Bf4 $15) 25. g4 {[%emt 0:04:01]} hxg4 {[%emt 0:01:17]} ({Don't play} 25... Nxd6 26. Ne5 Qc3 27. Bxd5 exd5 28. Qxc3 Rxc3 29. Bf4) 26. hxg4 {[%emt 0:00:01]} Nxd6 {[%emt 0:00:55] Excellent horsemanship.} 27. b5 {[%emt 0:00:13]} Qc3 {[%emt 0:02:20] Strongly threatening ...Nc4.} 28. Ne5 {[%emt 0:02:43]} Nc4 {[%emt 0:03:04]} 29. Nxc4 {[%emt 0:00:37]} Qxc4 {[%emt 0:00:05]} 30. Bh6 {[%emt 0:00:23]} Rc8 {[%emt 0:03:00]} 31. Qg3 {[%emt 0:01:01]} Qc7 {[%emt 0:01:53] ...Qxg3 is the strong threat.} (31... Qxa4 $2 {loses.} 32. Qe5 f6 33. Qxe6+ Kh7 34. Bxd5 Kxh6 35. Qxf6 $18) 32. Qh4 {[%emt 0:03:24] Bxd5 would now be deadly.} Qe7 {[%emt 0:01:49]} 33. Bg5 {[%emt 0:01:34] [#]} (33. Qxe7 {was worth a try.} Nxe7 34. a5) 33... f6 $1 {[%emt 0:00:20]} 34. Bh6 {[%emt 0:01:17]} (34. Be3) 34... g5 {[%emt 0:01:05]} 35. Qh1 {[%emt 0:01:41]} Rc1 {[%emt 0:00:32]} 36. Rxc1 {[%emt 0:01:25]} Rxc1+ {[%emt 0:00:05] Black mates.} 37. Bf1 {[%emt 0:00:02]} Qh7 {[%emt 0:00:38]} 38. Qh5 {[%emt 0:00:35] [#]} Rxf1+ $1 {[%emt 0:00:41][%mdl 512] Weighted Error Value: White=0.53/Black=0.06 (flawless) .  Mistake:       	White=4     	---        Inaccurate:     	White=2     	Black=1      OK:         	White=10    	Black=13     Best:        	---       	Black=1      Strong:       	---       	Black=1} 0-1

[Event "XII Cracow ICC-A 2024"]
[Site "Krakow"]
[Date "2024.06.24"]
[Round "4.9"]
[White "Vasynda, Oleksandr"]
[Black "Fus, Jakub"]
[Result "1-0"]
[ECO "A47"]
[WhiteElo "2219"]
[BlackElo "2455"]
[Annotator "TA"]
[PlyCount "97"]
[EventDate "2024.06.20"]
[EventType "swiss"]
[EventCountry "POL"]
[SourceTitle "playchess.com"]
[Source "ChessBase"]
[SourceQuality "1"]
[TimeControl "40/5400+30:1800+30"]

{[%evp 9,97,11,7,13,21,9,21,-9,0,9,6,8,9,8,8,-31,13,5,81,82,97,89,92,93,100,95,86,75,72,41,89,83,93,52,52,25,72,42,62,17,27,-8,-9,-18,-14,-37,-23,-52,0,-7,0,0,35,12,42,38,27,37,29,24,47,28,28,28,90,25,153,161,285,273,274,296,284,276,307,343,360,219,214,208,219,76,147,112,115,77,1077,1038,1206,1645]} 1. d4 {[%emt 0:00:06]} Nf6 {[%emt 0:00:15]} 2. Nf3 {[%emt 0:00:18]} b6 {[%emt 0:00:19]} 3. Bf4 {[%emt 0:00:29]} Bb7 {[%emt 0:00:21]} 4. e3 {[%emt 0:00:14]} g6 {[%emt 0:00:14]} 5. c4 {[%emt 0:00:13]} Bg7 {[%emt 0:00:54]} 6. Nc3 {[%emt 0:00:23]} O-O {[%emt 0:02:36]} 7. Bd3 {[%emt 0:00:40]} d6 {[%emt 0:01:02]} 8. h3 {[%emt 0:00:40] The position is equal.} Nbd7 {[%emt 0:00:16]} 9. O-O {[%emt 0:00:21]} Re8 {[%emt 0:04:02] aiming for ...e5.} 10. Bg5 {[%emt 0:03:54]} h6 {[%emt 0:01:06]} 11. Bh4 {[%emt 0:01:03]} e5 {[%emt 0:00:55] Threatens to win with ...e4.} 12. Be4 {[%emt 0:04:49]} c6 {[%emt 0:09:53]} 13. d5 {[%emt 0:01:04]} c5 {[%emt 0:00:27]} (13... cxd5 $11 14. Bxd5 Bxd5 15. cxd5 Rc8) 14. Bc2 $16 {[%emt 0:00:29]} Re7 {[%emt 0:08:23]} 15. Nd2 {[%emt 0:04:27] White has more active pieces.} a6 {[%emt 0:03:40]} 16. a4 {[%emt 0:05:19]} Qc7 {[%emt 0:04:32]} 17. Rb1 {[%emt 0:03:05]} Ree8 {[%emt 0:01:35]} 18. Bg3 {[%emt 0:03:17]} Nh7 {[%emt 0:01:28]} 19. e4 {[%emt 0:02:29]} h5 {[%emt 0:02:34]} (19... Ndf6 $14 {was preferrable.}) 20. Qe2 {[%emt 0:05:28]} Bc8 {[%emt 0:02:04]} 21. Nd1 {[%emt 0:03:00]} Qd8 {[%emt 0:01:20]} 22. Ne3 {[%emt 0:01:27]} Ra7 {[%emt 0:03:09]} (22... h4 $11 23. Bh2 Ndf6) 23. Nf3 {[%emt 0:01:43][%cal Bd2f3,Bf3e1,Be1d3][%mdl 32]} Bh6 {[%emt 0:03:02]} 24. Ne1 {[%emt 0:04:51]} Rb7 {[%emt 0:07:00]} 25. Nd3 {[%emt 0:06:03]} h4 {[%emt 0:07:33]} 26. Bh2 {[%emt 0:00:27]} Ndf6 {[%emt 0:00:20]} 27. f3 {[%emt 0:04:54]} a5 {[%emt 0:08:44]} 28. Ng4 {[%emt 0:01:28]} Bg5 {[%emt 0:00:33]} 29. Nxf6+ {[%emt 0:00:37]} Nxf6 {[%emt 0:00:17]} 30. Rbe1 {[%emt 0:01:30]} Rbe7 {[%emt 0:04:11]} 31. Qf2 {[%emt 0:01:40]} Nh5 {[%emt 0:01:57]} 32. f4 {[%emt 0:03:32]} exf4 {[%emt 0:00:11]} 33. Nxf4 {[%emt 0:00:05]} Nf6 {[%emt 0:00:41]} 34. Qf3 {[%emt 0:01:43]} Kg7 {[%emt 0:07:21]} 35. b3 {[%emt 0:01:04]} Bf5 {[%emt 0:03:49]} 36. Qc3 $1 {[%emt 0:03:49]} Bc8 {[%emt 0:03:14]} (36... Bxe4 $11 37. Bxe4 Rxe4) 37. Re2 {[%emt 0:01:53]} (37. Ne2 $16) 37... Kh6 {[%emt 0:01:24] [#]} (37... Re5 $1 $11 {remains equal.}) 38. Nxg6 $1 {[%emt 0:09:14]} fxg6 {[%emt 0:00:06]} (38... Nxe4 $142 39. Rxe4 fxg6) 39. Rxf6 $18 {[%emt 0:00:06]} Bxf6 {[%emt 0:00:19]} 40. Qxf6 {[%emt 0:00:05]} Rd7 {[%emt 0:00:39] [#]} 41. Rf2 {[%emt 0:30:28][%cal Be2f2,Bf2f6,Bf6g6,Bg6h6,Bh6h8,Bh8g8][%mdl 32]} Qxf6 {[%emt 0:37:32]} 42. Rxf6 {[%emt 0:00:02]} Kg7 {[%emt 0:00:00] [#]} 43. e5 {[%emt 0:00:00][%mdl 512]} dxe5 {[%emt 0:00:00]} 44. Rxg6+ {[%emt 0:00:00]} Kf8 {[%emt 0:00:00]} 45. Be4 {[%emt 0:00:00]} (45. Rxb6 $18 {has better winning chances. And now Bg6 would win.} e4 46. Bd6+ Kg8 47. Bxc5) 45... Rg7 {[%emt 0:00:00]} ({Black should play} 45... Rf7) 46. Rh6 {[%emt 0:00:00]} Bxh3 {[%emt 0:00:00]} 47. d6 {[%emt 0:00:00]} (47. Rxb6 $2 {loses.} Bxg2 48. Bxg2 h3 49. Rf6+ Ke7 $19 (49... Kg8 50. Rf2 $17)) (47. Rxh4 Rg4 48. Rxh3 Rxe4 $15) 47... Rg5 $2 {[%emt 0:00:00][%mdl 8192]} (47... Rg8 $16) 48. Rh8+ {[%emt 0:00:00]} ({Inferior is} 48. Rxh4 Be6 $11) 48... Rg8 {[%emt 0:00:24]} 49. Rxg8+ {[%emt 0:00:00] Weighted Error Value: White=0.24 (precise) /Black=0.26 (precise) .  Loses game:     	---       	Black=1      Mistake:       	White=2     	Black=7      Inaccurate:     	White=11    	Black=4      OK:         	White=10    	Black=15     Best:        	White=2     	Black=2      Strong:       	White=2     	---} ({Not} 49. Rxh4 Bd7 $16) 1-0

[Event "XII Cracow ICC-A 2024"]
[Site "Krakow"]
[Date "2024.06.24"]
[Round "4.10"]
[White "Lohia, Sohum"]
[Black "Drozdowski, Kacper"]
[Result "0-1"]
[ECO "C72"]
[WhiteElo "2270"]
[BlackElo "2448"]
[Annotator "TA"]
[PlyCount "118"]
[EventDate "2024.06.20"]
[EventType "swiss"]
[EventCountry "POL"]
[SourceTitle "playchess.com"]
[Source "ChessBase"]
[SourceQuality "1"]
[TimeControl "40/5400+30:1800+30"]

{[%evp 13,118,27,36,28,33,20,25,25,44,18,14,9,25,25,27,0,0,0,0,0,18,0,0,0,8,9,0,0,15,12,2,0,-14,0,0,0,0,-4,0,-11,0,0,0,0,0,0,0,0,20,6,15,20,44,39,87,45,47,27,83,22,83,54,68,0,0,0,0,0,12,15,39,-12,-18,-10,-13,-7,-16,-16,-4,-41,-22,-25,-25,-48,-48,-92,-72,-111,-111,-101,-100,-133,-115,-116,-101,-251,-245,-259,-241,-629,-631,-643,-640,-631,-621,-551,-539]} 1. e4 {[%emt 0:02:27]} e5 {[%emt 0:00:08]} 2. Nf3 {[%emt 0:00:10]} Nc6 {[%emt 0:00:08]} 3. Bb5 {[%emt 0:00:25]} a6 {[%emt 0:00:12]} 4. Ba4 {[%emt 0:00:08]} d6 {[%emt 0:00:16]} 5. O-O {[%emt 0:00:39]} Bd7 {[%emt 0:00:38]} 6. c3 {[%emt 0:00:33]} g6 {[%emt 0:02:24]} 7. Re1 {[%emt 0:01:18]} Bg7 {[%emt 0:00:18]} 8. h3 {[%emt 0:00:32]} Nf6 {[%emt 0:00:36]} 9. d4 {[%emt 0:00:33]} O-O {[%emt 0:01:28]} 10. Bc2 {[%emt 0:01:06] White has an edge.} Re8 {[%emt 0:02:52]} 11. a3 {[%emt 0:03:26]} b5 {[%emt 0:02:01]} 12. Nbd2 {[%emt 0:00:48]} Qb8 {[%emt 0:02:21]} 13. Nf1 {[%emt 0:12:43]} a5 {[%emt 0:00:33]} 14. Bd2 {[%emt 0:08:35]} a4 {[%emt 0:01:08]} 15. Qc1 {[%emt 0:02:25]} Na5 {[%emt 0:15:11][%cal Bc6a5,Ba5c4,Bc4e3][%mdl 32]} 16. Bh6 {[%emt 0:05:04]} Bh8 {[%emt 0:02:36]} 17. dxe5 {[%emt 0:09:33]} dxe5 {[%emt 0:00:08]} 18. Qg5 {[%emt 0:01:36]} Nc4 {[%emt 0:05:34][%cal Of6h5]} 19. Ne3 {[%emt 0:03:25]} Nxe3 {[%emt 0:21:59]} 20. Qxe3 {[%emt 0:00:33]} Qa7 {[%emt 0:03:48]} 21. Qxa7 {[%emt 0:02:40]} Rxa7 {[%emt 0:00:02]} 22. Be3 {[%emt 0:01:32]} Raa8 {[%emt 0:00:14]} 23. Rad1 {[%emt 0:02:05]} Bc6 {[%emt 0:01:15]} 24. Nd2 {[%emt 0:00:56][%cal Bf3d2,Bd2f1,Bf1e3,Be3d5][%mdl 32]} Bg7 {[%emt 0:02:00]} 25. f3 {[%emt 0:00:56]} Bf8 {[%emt 0:00:54]} 26. Nf1 {[%emt 0:01:17]} Nd7 {[%emt 0:05:20]} 27. Bf2 {[%emt 0:01:41]} Kg7 {[%emt 0:07:41]} 28. Re2 {[%emt 0:01:11]} Nc5 {[%emt 0:02:47]} 29. Red2 {[%emt 0:01:20]} Ne6 {[%emt 0:03:22]} 30. Ne3 {[%emt 0:00:37]} Bc5 {[%emt 0:02:30]} 31. Nd5 {[%emt 0:01:05] Bxc5 would now be deadly.} Bxf2+ {[%emt 0:00:28]} 32. Kxf2 {[%emt 0:00:13]} Bb7 {[%emt 0:04:50]} 33. Bd3 {[%emt 0:04:02]} c6 {[%emt 0:05:06]} (33... Rab8 $14) 34. Ne3 {[%emt 0:00:40]} h5 {[%emt 0:00:50]} 35. h4 {[%emt 0:00:20]} Kf8 {[%emt 0:01:49]} (35... Red8 $11) 36. g3 {[%emt 0:01:43]} (36. Bf1 $16) 36... Ba6 {[%emt 0:01:07]} (36... Rad8 $1 $11) 37. Bf1 {[%emt 0:01:43]} Nc5 {[%emt 0:00:41]} 38. Bh3 {[%emt 0:01:16]} (38. Nc2 $14) 38... Bc8 $11 {[%emt 0:00:41]} 39. Bxc8 {[%emt 0:00:43]} Raxc8 {[%emt 0:00:06]} 40. Nc2 {[%emt 0:00:41]} Ke7 {[%emt 0:01:58]} 41. Nb4 {[%emt 0:30:35] And now Rd6 would win.} Rc7 {[%emt 0:30:32]} 42. Rd6 {[%emt 0:06:03]} ({White should play} 42. Rc2 $14) 42... Rec8 {[%emt 0:00:23]} 43. Nc2 {[%emt 0:06:38]} Rd7 {[%emt 0:00:00]} 44. Rxd7+ {[%emt 0:00:00]} Nxd7 {[%emt 0:00:00][%mdl 4096] Endgame. KRN-KRN} 45. Ne3 {[%emt 0:00:00]} Nc5 {[%emt 0:00:00]} 46. Nc2 {[%emt 0:00:00]} Ke6 {[%emt 0:00:00]} 47. Nb4 {[%emt 0:00:00]} Nb7 {[%emt 0:00:00]} 48. Nc2 {[%emt 0:00:00]} Nd6 {[%emt 0:00:00]} 49. Ne3 {[%emt 0:00:00]} Rf8 {[%emt 0:00:00]} 50. Re1 {[%emt 0:00:00]} f5 {[%emt 0:00:00]} 51. exf5+ {[%emt 0:00:00]} gxf5 {[%emt 0:00:00]} 52. Ng2 {[%emt 0:00:00] [#]} Kd5 $1 {[%emt 0:00:00]} 53. Ne3+ {[%emt 0:00:00]} Kc5 {[%emt 0:00:00]} 54. f4 {[%emt 0:00:43] Now White is beyond hope.} (54. Re2 $17) 54... exf4 $19 {[%emt 0:00:00]} 55. gxf4 {[%emt 0:00:12] [#]} Nc4 $1 {[%emt 0:00:00]} 56. Nxc4 {[%emt 0:05:46]} (56. Rg1) 56... Kxc4 {[%emt 0:00:00] Black is clearly winning.} 57. Re6 {[%emt 0:01:40]} Rc8 {[%emt 0:00:00]} 58. Re2 {[%emt 0:08:00]} Kb3 {[%emt 0:00:00]} 59. Rd2 {[%emt 0:01:12]} Re8 {[%emt 0:00:00] Weighted Error Value: White=0.23 (precise) /Black=0.09 (flawless) .  Mistake:       	White=5     	Black=3      Inaccurate:     	White=7     	---        OK:         	White=19    	Black=20     Best:        	---       	Black=3      Strong:       	---       	Black=1} 0-1

[Event "XII Cracow ICC-A 2024"]
[Site "Krakow"]
[Date "2024.06.24"]
[Round "4.11"]
[White "Licznerski, Lukasz"]
[Black "Petrovic, Aleksa"]
[Result "0-1"]
[ECO "C79"]
[WhiteElo "2434"]
[BlackElo "2303"]
[Annotator "TA"]
[PlyCount "73"]
[EventDate "2024.06.20"]
[EventType "swiss"]
[EventCountry "POL"]
[SourceTitle "playchess.com"]
[Source "ChessBase"]
[SourceQuality "1"]
[TimeControl "40/5400+30:1800+30"]

{[%evp 15,73,31,27,38,30,29,36,37,30,25,34,23,29,20,26,33,32,32,32,27,42,22,25,-6,-3,-177,-236,-213,-179,-211,-205,-238,-241,-245,-252,-248,-239,-200,-241,-241,0,-228,-185,-228,-126,-318,-198,-599,-582,-1170,-29974,-29975,-29976,-29976,-29977,-29977,-29978,-29978,-29976,-6227]} 1. e4 {[%emt 0:16:07]} e5 {[%emt 0:00:15]} 2. Nf3 {[%emt 0:01:28]} Nc6 {[%emt 0:00:06]} 3. Bb5 {[%emt 0:00:07]} a6 {[%emt 0:00:21]} 4. Ba4 {[%emt 0:00:02]} Nf6 {[%emt 0:00:30]} 5. O-O {[%emt 0:00:12]} d6 {[%emt 0:02:40]} 6. Re1 {[%emt 0:09:59]} Bd7 {[%emt 0:01:01]} 7. c3 {[%emt 0:00:33]} g6 {[%emt 0:00:07]} 8. d4 {[%emt 0:00:18]} Bg7 {[%emt 0:00:06]} 9. d5 {[%emt 0:03:47]} Ne7 {[%emt 0:07:20]} 10. Bxd7+ {[%emt 0:00:06]} Nxd7 {[%emt 0:00:07]} 11. c4 {[%emt 0:00:04] White is slightly better.} h6 {[%emt 0:04:42]} 12. Nc3 {[%emt 0:02:56]} f5 {[%emt 0:02:01]} 13. b4 {[%emt 0:05:49]} a5 {[%emt 0:05:43]} 14. Ba3 {[%emt 0:02:35]} O-O {[%emt 0:03:46]} 15. bxa5 {[%emt 0:01:42]} Rxa5 {[%emt 0:02:14]} 16. Bb4 {[%emt 0:00:02]} Ra6 {[%emt 0:02:27]} 17. a4 {[%emt 0:00:50]} b6 {[%emt 0:11:09]} 18. a5 {[%emt 0:04:36]} bxa5 {[%emt 0:06:22]} 19. Bxa5 {[%emt 0:01:24]} (19. Rxa5 {simplifies} Qa8 20. Qa1 Rxa5 21. Bxa5 fxe4 22. Nxe4 Nf6 23. Nfd2) 19... Nc5 {[%emt 0:04:37]} 20. Nb5 $2 {[%emt 0:07:51] [#]} (20. Nd2 $11) 20... Rxa5 $1 $19 {[%emt 0:09:06][%mdl 512]} 21. Rxa5 {[%emt 0:00:20]} fxe4 {[%emt 0:01:12]} (21... Nxe4 $2 22. Ra7 $18) 22. Ng5 {[%emt 0:10:13]} c6 {[%emt 0:02:16]} 23. Ra7 {[%emt 0:00:27] Hoping for dxc6.} cxb5 {[%emt 0:02:24]} ({Worse is} 23... hxg5 24. dxc6 d5 25. c7 $11 (25. cxd5 Qb6 $11)) 24. Ne6 {[%emt 0:00:01]} Nxe6 {[%emt 0:05:25]} 25. dxe6 {[%emt 0:00:03]} bxc4 {[%emt 0:08:44]} 26. Rd7 {[%emt 0:00:08] [#]} Qb6 {[%emt 0:00:58]} ({Stronger than} 26... e3 27. fxe3 Qe8 28. Qxd6 $11) 27. Rxe7 {[%emt 0:00:08]} Qxf2+ {[%emt 0:00:24]} 28. Kh1 {[%emt 0:00:02][%cal Oe7d7] [#]} e3 $1 {[%emt 0:06:05][%cal Oe3e2] And now ...e2! would win.} ({Inferior is} 28... d5 29. Rd7 Kh7 30. e7 $14) 29. h3 {[%emt 0:07:07][%cal Oe7d7]} Qd2 {[%emt 0:01:54]} ({Better is} 29... c3 $19 {...c2 is the strong threat.} 30. Qa1 d5) 30. Qe2 $2 {[%emt 0:05:28]} (30. Qb1 $17 e2 31. Rg1) 30... Bf6 {[%emt 0:07:46]} 31. Rd7 {[%emt 0:00:45]} (31. Rc7 {nothing else works.}) 31... Bh4 {[%emt 0:01:57]} 32. e7 {[%emt 0:03:54]} Qxe1+ {[%emt 0:00:18]} 33. Qxe1 {[%emt 0:00:02] Black mates.} Bxe1 {[%emt 0:00:07]} 34. Rd8 {[%emt 0:00:06] [#]} Re8 $3 {[%emt 0:00:04]} 35. Rxe8+ {[%emt 0:00:36]} Kf7 {[%emt 0:00:06]} 36. Rc8 {[%emt 0:00:05]} Kxe7 {[%emt 0:00:05]} 37. Rxc4 {[%emt 0:00:03] Weighted Error Value: White=0.89/Black=0.18 (very precise) .  Loses game:     	White=3     	---        Mistake:       	White=1     	Black=1      Inaccurate:     	White=2     	Black=1      OK:         	White=9     	Black=9      Best:        	White=3     	Black=3      Strong:       	---       	Black=1      Brilliant:      	---       	Black=1} 0-1